fUST/lending_fUST_20240113
["ID","MTS","AMOUNT","RATE_DAILY","PERIOD"]
[311428866,1705095033779,-200.0,0.000286,2]
[311428867,1705095033788,-483.70402336,0.000286,2]
[311428868,1705095033797,-261.04615334,0.000286,2]
[311428869,1705095033806,-585.62139592,0.000286,2]
[311428870,1705095033815,-300.0,0.000286,14]
[311428871,1705095033824,-3314.65607422,0.000286,2]
[311428872,1705095033835,-155.15506132,0.000286,2]
[311428873,1705095033844,-163.545116,0.000286,2]
[311428874,1705095033853,-500.0,0.00028632,2]
[311428875,1705095033862,-500.0,0.00028686,2]
[311428876,1705095033874,-500.0,0.00028686,2]
[311428877,1705095033883,-404.672001,0.00028687,2]
[311428878,1705095033892,-475.40171563,0.00028688,2]
[311428879,1705095033902,-155.11612247,0.00028693,2]
[311428880,1705095033910,-1302.31,0.0002871,2]
[311428881,1705095033919,-1000.0,0.0002871,2]
[311428882,1705095033929,-467.380128,0.0002871,2]
[311428883,1705095033937,-467.380128,0.0002871,2]
[311428884,1705095033947,-280.0,0.00028733,15]
[311428885,1705095033956,-1000.0,0.00028734,2]
[311428886,1705095033965,-31652.62732488,0.00028739,2]
[311428887,1705095033974,-467.380128,0.00028739,2]
[311428888,1705095033983,-467.380128,0.00028739,2]
[311428889,1705095033992,-1000.0,0.00028741,2]
[311428890,1705095034003,-312.36705392,0.00028749,2]
[311428891,1705095034013,-1000.0,0.00028759,2]
[311428892,1705095034022,-1000.0,0.00028767,2]
[311428893,1705095034031,-153.0,0.00028767,2]
[311428894,1705095034040,-153.0,0.00028767,2]
[311428895,1705095034049,-321.9180121,0.00028767,2]
[311428896,1705095034058,-153.0,0.00028767,2]
[311428897,1705095034067,-153.0,0.00028767,2]
[311428898,1705095034076,-153.0,0.00028767,2]
[311428899,1705095034085,-153.0,0.00028767,2]
[311428900,1705095034094,-153.0,0.00028767,2]
[311428901,1705095034103,-153.0,0.00028767,2]
[311428902,1705095034112,-153.0,0.00028767,2]
[311428903,1705095034122,-153.0,0.00028767,2]
[311428904,1705095034131,-153.0,0.00028767,2]
[311428905,1705095034139,-153.0,0.00028767,2]
[311428906,1705095034148,-153.0,0.00028767,2]
[311428907,1705095034157,-153.0,0.00028767,2]
[311428908,1705095034167,-153.0,0.00028767,2]
[311428909,1705095034176,-1000.0,0.0002877,2]
[311428910,1705095034184,-1000.0,0.00028774,2]
[311428911,1705095034193,-1093.66262774,0.00028775,2]
[311428912,1705095034202,-1000.0,0.00028776,2]
[311428913,1705095034211,-1000.0,0.00028784,2]
[311428914,1705095034221,-1000.0,0.00028785,2]
[311428915,1705095034230,-1000.0,0.0002879,2]
[311428916,1705095034239,-243.06203949,0.000288,4]
[311428917,1705095034248,-1000.0,0.00028807,2]
[311428918,1705095034257,-1000.0,0.00028808,2]
[311428919,1705095034266,-467.380128,0.00028813,2]
[311428920,1705095034275,-467.380128,0.00028813,2]
[311428921,1705095034284,-500.0,0.00028813,2]
[311428922,1705095034293,-500.0,0.00028813,2]
[311428923,1705095034302,-399.62867393,0.00028813,2]
[311428924,1705095034311,-500.0,0.00028813,2]
[311428925,1705095034320,-500.0,0.00028813,2]
[311428926,1705095034329,-609.52637741,0.00028813,2]
[311428927,1705095034338,-502.61811935,0.00028813,2]
[311428928,1705095034347,-500.0,0.00028813,2]
[311428929,1705095034357,-170.14017987,0.00028813,2]
[311428930,1705095034367,-500.0,0.00028813,2]
[311428931,1705095034376,-500.0,0.00028813,2]
[311428932,1705095034385,-500.0,0.00028813,2]
[311428933,1705095034394,-500.0,0.00028813,2]
[311428934,1705095034403,-407.75411898,0.00028813,2]
[311428935,1705095034412,-504.46218806,0.00028813,2]
[311428936,1705095034421,-500.0,0.00028813,2]
[311428937,1705095034430,-500.0,0.00028813,2]
[311428938,1705095034439,-500.0,0.00028813,2]
[311428939,1705095034447,-500.0,0.00028813,2]
[311428940,1705095034455,-500.0,0.00028813,2]
[311428941,1705095034463,-500.0,0.00028813,2]
[311428942,1705095034472,-500.0,0.00028813,2]
[311428943,1705095034481,-500.0,0.00028813,2]
[311428944,1705095034489,-500.0,0.00028813,2]
[311428945,1705095034498,-500.0,0.00028813,2]
[311428946,1705095034508,-500.0,0.00028813,2]
[311428947,1705095034517,-500.0,0.00028813,2]
[311428948,1705095034525,-500.0,0.00028813,2]
[311428949,1705095034535,-502.14628969,0.00028813,2]
[311428950,1705095034544,-500.0,0.00028813,2]
[311428951,1705095034554,-500.0,0.00028813,2]
[311428952,1705095034563,-500.0,0.00028813,2]
[311428953,1705095034572,-500.0,0.00028813,2]
[311428954,1705095034581,-500.0,0.00028813,2]
[311428955,1705095034591,-500.0,0.00028813,2]
[311428956,1705095034600,-271.67925964,0.00028813,2]
[311428957,1705095034609,-500.0,0.00028813,2]
[311428958,1705095034620,-500.0,0.00028813,2]
[311428959,1705095034629,-500.0,0.00028813,2]
[311428960,1705095034638,-500.0,0.00028813,2]
[311428961,1705095034647,-532.41305287,0.00028813,2]
[311428962,1705095034656,-500.0,0.00028813,2]
[311428963,1705095034665,-500.0,0.00028813,2]
[311428964,1705095034674,-500.0,0.00028813,2]
[311428965,1705095034683,-500.0,0.00028813,2]
[311428966,1705095034692,-1000.0,0.0002882,2]
[311428967,1705095034701,-467.380128,0.00028831,2]
[311428968,1705095034711,-467.380128,0.00028831,2]
[311428969,1705095034720,-265.0895561,0.00028831,2]
[311428970,1705095034729,-500.0,0.00028831,2]
[311428971,1705095034739,-973.39849881,0.00028832,2]
[311428972,1705095034748,-4917.8600325,0.00028832,2]
[311428973,1705095034756,-1000.0,0.00028833,2]
[311428974,1705095034765,-155.00109654,0.00028835,2]
[311428975,1705095034774,-301.30095178,0.00028836,2]
[311428976,1705095034783,-750.10769861,0.00028836,2]
[311428977,1705095034792,-1172.5308552,0.00028837,2]
[311428978,1705095034801,-158.61680624,0.00028837,2]
[311428979,1705095034810,-181.46170404,0.00028837,2]
[311428980,1705095034819,-158.32519524,0.00028837,2]
[311428981,1705095034828,-878.34013724,0.00028838,2]
[311428982,1705095034837,-168.54559736,0.00028838,2]
[311428983,1705095034846,-2918.68572533,0.00028838,2]
[311428984,1705095034855,-521.0,0.00028838,2]
[311428985,1705095034865,-1194.12289066,0.00028838,2]
[311428986,1705095034875,-467.380128,0.00028839,2]
[311428987,1705095034884,-467.380128,0.00028839,2]
[311428988,1705095034893,-329.27294652,0.00028839,2]
[311428989,1705095034902,-1000.0,0.00028839,2]
[311428990,1705095034911,-500.0,0.00028839,2]
[311428991,1705095034920,-500.0,0.00028839,2]
[311428992,1705095034928,-500.0,0.0002884,2]
[311428993,1705095034937,-500.0,0.0002884,2]
[311428994,1705095034946,-502.2899914,0.0002884,2]
[311428995,1705095034955,-227.76444057,0.0002884,2]
[311428996,1705095034967,-1000.0,0.00028861,2]
[311428997,1705095034976,-332.28457593,0.00028865,2]
[311428998,1705095034986,-253.55669293,0.00028871,2]
[311428999,1705095034994,-650.68,0.00028872,2]
[311429000,1705095035005,-500.0,0.00028872,2]
[311429001,1705095035014,-1984.76,0.00028872,2]
[311429002,1705095035024,-500.0,0.00028872,2]
[311429003,1705095035033,-500.0,0.00028872,2]
[311429004,1705095035042,-500.0,0.00028872,2]
[311429005,1705095035052,-500.0,0.00028872,2]
[311429006,1705095035062,-500.0,0.00028872,2]
[311429007,1705095035071,-500.0,0.00028872,2]
[311429008,1705095035080,-500.0,0.00028872,2]
[311429009,1705095035090,-500.0,0.00028872,2]
[311429010,1705095035100,-500.0,0.00028872,2]
[311429011,1705095035109,-500.0,0.00028872,2]
[311429012,1705095035121,-500.0,0.00028872,2]
[311429013,1705095035228,-467.380128,0.00028872,2]
[311429014,1705095035238,-467.380128,0.00028872,2]
[311429015,1705095035248,-500.0,0.00028873,2]
[311429016,1705095035257,-500.0,0.00028873,2]
[311429017,1705095035266,-543.39,0.00028873,2]
[311429018,1705095035275,-1000.0,0.00028882,2]
[311429019,1705095035285,-1000.0,0.00028887,2]
[311429020,1705095035293,-155.29426556,0.00028891,2]
[311429021,1705095035302,-285.7548216,0.00028891,2]
[311429022,1705095035311,-1587.23277287,0.00028891,2]
[311429023,1705095035320,-275.44972625,0.00028891,2]
[311429024,1705095035330,-155.18425298,0.00028891,2]
[311429025,1705095035339,-309.84507746,0.00028891,2]
[311429026,1705095035348,-188.96266745,0.00028891,2]
[311429027,1705095035356,-158.46233779,0.00028891,2]
[311429028,1705095035368,-212.96062918,0.00028891,2]
[311429029,1705095035377,-1000.0,0.00028891,2]
[311429030,1705095035387,-4712.57883465,0.00028892,2]
[311429031,1705095035396,-157.21239275,0.00028892,2]
[311429032,1705095035406,-467.380128,0.00028893,2]
[311429033,1705095035416,-467.380128,0.00028893,2]
[311429034,1705095035425,-502.88239032,0.00028893,2]
[311429035,1705095035434,-500.0,0.00028893,2]
[311429036,1705095035443,-500.0,0.00028893,2]
[311429037,1705095035452,-500.0,0.00028893,2]
[311429038,1705095035461,-500.0,0.00028893,2]
[311429039,1705095035471,-500.0,0.00028893,2]
[311429040,1705095035480,-374.08094525,0.00028893,2]
[311429041,1705095035490,-500.0,0.00028893,2]
[311429042,1705095035499,-467.380128,0.00028894,2]
[311429043,1705095035509,-467.380127,0.00028894,2]
[311429044,1705095035518,-500.0,0.00028894,2]
[311429045,1705095035527,-350.37951734,0.00028894,2]
[311429046,1705095035546,-500.0,0.00028894,2]
[311429047,1705095035555,-500.0,0.00028894,2]
[311429048,1705095035564,-500.0,0.00028894,2]
[311429049,1705095035574,-500.0,0.00028894,2]
[311429050,1705095035584,-500.0,0.00028894,2]
[311429051,1705095035593,-161.8286803,0.00028894,2]
[311429052,1705095035602,-500.0,0.00028894,2]
[311429053,1705095035611,-500.0,0.00028894,2]
[311429054,1705095035623,-504.20120448,0.00028894,2]
[311429055,1705095035632,-1000.0,0.00028894,2]
[311429056,1705095035641,-500.0,0.00028894,2]
[311429057,1705095035651,-500.0,0.00028894,2]
[311429058,1705095035660,-500.0,0.00028894,2]
[311429059,1705095035669,-500.50039917,0.00028894,2]
[311429060,1705095035678,-508.16948772,0.00028894,2]
[311429061,1705095035688,-556.57278651,0.00028894,2]
[311429062,1705095035697,-504.42727557,0.00028894,2]
[311429063,1705095035706,-500.0,0.00028894,2]
[311429064,1705095035716,-500.0,0.00028894,2]
[311429065,1705095035725,-500.0,0.00028894,2]
[311429066,1705095035734,-500.0,0.00028894,2]
[311429067,1705095035743,-221.18200146,0.00028894,2]
[311429068,1705095035752,-500.0,0.00028894,2]
[311429069,1705095035761,-627.1533721,0.00028894,2]
[311429070,1705095035770,-501.33793308,0.00028894,2]
[311429071,1705095035780,-500.0,0.00028894,2]
[311429072,1705095035789,-540.95,0.00028894,2]
[311429073,1705095035797,-500.0,0.00028894,2]
[311429074,1705095035806,-514.09104851,0.00028894,2]
[311429075,1705095035815,-500.0,0.00028894,2]
[311429076,1705095035825,-500.0,0.00028894,2]
[311429077,1705095035834,-500.0,0.00028894,2]
[311429078,1705095035844,-500.0,0.00028894,2]
[311429079,1705095035853,-500.0,0.00028894,2]
[311429080,1705095035862,-500.0,0.00028894,2]
[311429081,1705095035872,-500.0,0.00028894,2]
[311429082,1705095035882,-500.0,0.00028894,2]
[311429083,1705095035891,-1000.0,0.00028894,2]
[311429084,1705095035901,-500.0,0.00028894,2]
[311429085,1705095035911,-581.53617667,0.00028896,2]
[311429086,1705095035920,-6529.23690612,0.00028896,2]
[311429087,1705095035929,-261.7761853,0.00028896,2]
[311429088,1705095035939,-178.51706094,0.00028896,2]
[311429089,1705095035949,-500.0,0.00028897,2]
[311429090,1705095035958,-500.0,0.00028897,2]
[311429091,1705095035968,-500.0,0.00028897,2]
[311429092,1705095035977,-500.0,0.00028897,2]
[311429093,1705095035986,-500.0,0.00028897,2]
[311429094,1705095035995,-500.0,0.00028897,2]
[311429095,1705095036006,-500.0,0.00028897,2]
[311429096,1705095036016,-458.50637181,0.00028897,2]
[311429097,1705095036025,-500.0,0.00028897,2]
[311429098,1705095036034,-156.70765642,0.00028897,2]
[311429099,1705095036043,-500.0,0.00028897,2]
[311429100,1705095036053,-500.0,0.00028897,2]
[311429101,1705095036063,-500.0,0.00028897,2]
[311429102,1705095036072,-442.19069985,0.00028897,2]
[311429103,1705095036082,-155.97583988,0.00028898,2]
[311429104,1705095036091,-8358.93451009,0.00028898,2]
[311429105,1705095036101,-7943.71182072,0.00028898,2]
[311429106,1705095036111,-947.43868379,0.00028898,2]
[311429107,1705095036121,-160.92518621,0.00028898,2]
[311429108,1705095036130,-3734.85124,0.00028899,2]
[311429109,1705095036140,-18828.38444506,0.000289,2]
[311429110,1705095036149,-6025.27531555,0.000289,18]
[311429111,1705095036159,-1000.0,0.00028913,2]
[311429112,1705095036168,-1000.0,0.00028921,2]
[311429113,1705095036178,-1000.0,0.00028924,2]
[311429114,1705095036187,-1000.0,0.00028928,2]
[311429115,1705095036196,-1000.0,0.00028928,2]
[311429116,1705095036205,-1000.0,0.00028939,7]
[311429117,1705095036215,-1000.0,0.00028939,7]
[311429118,1705095036224,-1000.0,0.00028939,7]
[311429119,1705095036233,-1000.0,0.00028943,2]
[311429120,1705095036242,-1000.0,0.00028944,2]
[311429121,1705095036251,-179.774384,0.00028945,2]
[311429122,1705095036261,-1000.0,0.00028947,2]
[311429123,1705095036270,-1000.0,0.00028948,2]
[311429124,1705095036280,-1000.0,0.00028957,2]
[311429125,1705095036289,-1000.0,0.00028974,2]
[311429126,1705095036298,-1302.31,0.00028984,2]
[311429127,1705095036307,-150.0,0.00028988,2]
[311429128,1705095036316,-150.0,0.00028988,2]
[311429129,1705095036325,-225.87905376,0.00028998,2]
[311429130,1705095036335,-1889.14392363,0.00028999,2]
[311429131,1705095036344,-2033.64412158,0.00029,2]
[311429132,1705095036353,-2973.55541023,0.00029,2]
[311429133,1705095036363,-268.18622721,0.00029,2]
[311429134,1705095036374,-190.64320071,0.00029,2]
[311429135,1705095036384,-166.10900836,0.00029,2]
[311429136,1705095036394,-1000.0,0.00029,29]
[311429137,1705095036404,-831.20840111,0.00029,2]
[311429138,1705095036413,-155.06823002,0.00029,2]
[311429139,1705095036422,-2785.9795547,0.00029,2]
[311429140,1705095036432,-1500.0,0.00029,2]
[311429141,1705095036442,-366.4580534,0.00029087,2]
[311429142,1705095036452,-500.0,0.00029087,2]
[311429143,1705095036461,-500.0,0.00029087,2]
[311429144,1705095036473,-500.0,0.00029087,2]
[311429145,1705095036483,-503.86688486,0.00029087,2]
[311429146,1705095036492,-500.0,0.00029087,2]
[311429147,1705095036501,-520.31821242,0.00029087,2]
[311429148,1705095036510,-500.0,0.00029087,2]
[311429149,1705095036519,-528.6586103,0.00029087,2]
[311429150,1705095036528,-283.42872033,0.00029087,2]
[311429151,1705095036537,-500.0,0.00029087,2]
[311429152,1705095036546,-500.0,0.00029087,2]
[311429153,1705095036555,-500.0,0.00029087,2]
[311429154,1705095036564,-500.0,0.00029087,2]
[311429155,1705095036574,-500.0,0.00029087,2]
[311429156,1705095036583,-500.0,0.00029087,2]
[311429157,1705095036592,-500.0,0.00029087,2]
[311429158,1705095036602,-500.0,0.00029087,2]
[311429159,1705095036612,-500.0,0.00029087,2]
[311429160,1705095036623,-500.0,0.00029087,2]
[311429161,1705095036633,-500.0,0.00029087,2]
[311429162,1705095036642,-500.0,0.00029087,2]
[311429163,1705095036652,-500.0,0.00029087,2]
[311429164,1705095036661,-500.0,0.00029087,2]
[311429165,1705095036670,-500.0,0.00029087,2]
[311429166,1705095036679,-500.0,0.00029105,2]
[311429167,1705095036688,-635.53581168,0.00029114,2]
[311429168,1705095036698,-152.64236015,0.00029121,2]
[311429169,1705095036707,-650.68,0.00029146,2]
[311429170,1705095036716,-346.47463783,0.00029146,2]
[311429171,1705095036726,-1984.76,0.00029146,2]
[311429172,1705095036736,-500.0,0.00029146,2]
[311429173,1705095036746,-500.0,0.00029146,2]
[311429174,1705095036755,-500.0,0.00029146,2]
[311429175,1705095036765,-500.0,0.00029146,2]
[311429176,1705095036775,-500.0,0.00029146,2]
[311429177,1705095036784,-500.0,0.00029146,2]
[311429178,1705095036794,-500.0,0.00029146,2]
[311429179,1705095036803,-500.0,0.00029147,2]
[311429180,1705095036812,-543.39,0.00029147,2]
[311429181,1705095036821,-1234.15692407,0.00029167,2]
[311429182,1705095036831,-1234.15692407,0.00029167,2]
[311429183,1705095036841,-1234.15692407,0.00029167,2]
[311429184,1705095036851,-1234.15692407,0.00029167,2]
[311429185,1705095036860,-1234.15692407,0.00029167,2]
[311429186,1705095036874,-1234.15692407,0.00029167,2]
[311429187,1705095036884,-1234.15692407,0.00029167,2]
[311429188,1705095036893,-1234.15692407,0.00029167,2]
[311429189,1705095036902,-1234.15692407,0.00029167,2]
[311429190,1705095036911,-1234.15692407,0.00029167,2]
[311429191,1705095036920,-500.0,0.00029167,2]
[311429192,1705095036930,-311.79,0.00029168,2]
[311429193,1705095036939,-325.75867335,0.00029168,2]
[311429194,1705095036949,-500.0,0.00029168,2]
[311429195,1705095036958,-500.0,0.00029168,2]
[311429196,1705095036967,-500.0,0.00029168,2]
[311429197,1705095036976,-500.0,0.00029168,2]
[311429198,1705095036985,-500.0,0.00029168,2]
[311429199,1705095036994,-500.0,0.00029171,2]
[311429200,1705095037004,-500.0,0.00029171,2]
[311429201,1705095037015,-500.0,0.00029171,2]
[311429202,1705095037024,-153.0,0.00029178,2]
[311429203,1705095037033,-153.0,0.00029178,2]
[311429204,1705095037042,-153.0,0.00029178,2]
[311429205,1705095037051,-153.0,0.00029178,2]
[311429206,1705095037060,-153.0,0.00029178,2]
[311429207,1705095037069,-153.0,0.00029178,2]
[311429208,1705095037078,-155.0,0.00029209,2]
[311429209,1705095037087,-152.64236015,0.00029258,2]
[311429210,1705095037096,-1302.31,0.00029258,2]
[311429211,1705095037105,-160.61660186,0.000293,2]
[311429212,1705095037114,-500.0,0.00029361,2]
[311429213,1705095037126,-327.28842134,0.00029361,2]
[311429214,1705095037136,-500.0,0.00029361,2]
[311429215,1705095037145,-503.34416239,0.00029361,2]
[311429216,1705095037154,-500.0,0.00029361,2]
[311429217,1705095037163,-500.0,0.00029361,2]
[311429218,1705095037172,-310.33962096,0.00029361,2]
[311429219,1705095037181,-500.0,0.00029361,2]
[311429220,1705095037190,-500.0,0.00029361,2]
[311429221,1705095037199,-500.0,0.00029361,2]
[311429222,1705095037208,-500.0,0.00029379,2]
[311429223,1705095037217,-179.774384,0.00029412,2]
[311429224,1705095037227,-2532.52,0.00029415,2]
[311429225,1705095037236,-650.68,0.0002942,2]
[311429226,1705095037245,-1984.76,0.0002942,2]
[311429227,1705095037255,-500.0,0.0002942,2]
[311429228,1705095037265,-500.0,0.0002942,2]
[311429229,1705095037273,-500.0,0.0002942,2]
[311429230,1705095037283,-500.0,0.0002942,2]
[311429231,1705095037291,-500.0,0.0002942,2]
[311429232,1705095037301,-500.0,0.0002942,2]
[311429233,1705095037310,-500.0,0.00029421,2]
[311429234,1705095037319,-543.39,0.00029421,2]
[311429235,1705095037328,-500.0,0.00029442,2]
[311429236,1705095037338,-500.0,0.00029442,2]
[311429237,1705095037346,-500.0,0.00029442,2]
[311429238,1705095037355,-219.41306917,0.00029442,2]
[311429239,1705095037365,-184.13370995,0.00029445,2]
[311429240,1705095037375,-193.887083,0.00029467,2]
[311429241,1705095037384,-168.954557,0.00029467,2]
[311429242,1705095037393,-164.641066,0.00029467,2]
[311429243,1705095037403,-155.393513,0.00029467,2]
[311429244,1705095037412,-177.396825,0.00029467,2]
[311429245,1705095037421,-254.3791948,0.00029501,3]
[311429246,1705095037430,-1302.31,0.00029532,2]
[311429247,1705095037439,-151.0,0.00029555,2]
[311429248,1705095037448,-153.0,0.00029589,2]
[311429249,1705095037457,-153.0,0.00029589,2]
[311429250,1705095037467,-153.0,0.00029589,2]
[311429251,1705095037475,-153.0,0.00029589,2]
[311429252,1705095037484,-153.0,0.00029589,2]
[311429253,1705095037494,-153.0,0.00029589,2]
[311429254,1705095037503,-153.0,0.00029589,2]
[311429255,1705095037512,-153.0,0.00029589,2]
[311429256,1705095037521,-153.0,0.00029589,2]
[311429257,1705095037530,-153.0,0.00029589,2]
[311429258,1705095037539,-153.0,0.00029589,2]
[311429259,1705095037548,-153.0,0.00029589,2]
[311429260,1705095037557,-153.0,0.00029589,2]
[311429261,1705095037566,-153.0,0.00029589,2]
[311429262,1705095037575,-153.0,0.00029589,2]
[311429263,1705095037584,-153.0,0.00029589,2]
[311429264,1705095037593,-500.0,0.00029635,2]
[311429265,1705095037603,-500.0,0.00029635,2]
[311429266,1705095037612,-500.0,0.00029635,2]
[311429267,1705095037621,-379.9,0.00029635,2]
[311429268,1705095037630,-500.0,0.00029653,2]
[311429269,1705095037639,-650.68,0.00029694,2]
[311429270,1705095037647,-1984.76,0.00029694,2]
[311429271,1705095037656,-500.0,0.00029694,2]
[311429272,1705095037665,-500.0,0.00029694,2]
[311429273,1705095037674,-500.0,0.00029694,2]
[311429274,1705095037683,-500.0,0.00029694,2]
[311429275,1705095037693,-543.39,0.00029695,2]
[311429276,1705095037702,-500.0,0.00029716,2]
[311429277,1705095037710,-500.0,0.00029716,2]
[311429278,1705095037720,-160.0,0.00029789,10]
[311429279,1705095037729,-228340.13098721,0.0002979,7]
[311429280,1705095037746,-2225.75176091,0.0002979,7]
[311429325,1705095039040,-290.81876086,0.00027613,2]
[311429557,1705095041812,-209.18123914,0.00027613,2]
[311429558,1705095041821,-193.26076051,0.00027887,2]
[311429559,1705095041833,-306.73923949,0.00027887,2]
[311429560,1705095041842,-500.0,0.00028161,2]
[311429561,1705095041852,-269.03276031,0.00028435,2]
[311429562,1705095041878,-230.96723969,0.00028435,2]
[311429563,1705095041887,-500.0,0.00028598,2]
[311429564,1705095041897,-500.0,0.00028598,2]
[311429565,1705095041907,-500.0,0.00028709,2]
[311429566,1705095041917,-500.0,0.00028813,2]
[311429567,1705095041925,-370.13562988,0.00028983,2]
[311429568,1705095041935,-500.0,0.00029087,2]
[311429569,1705095041944,-2014.55991032,0.0002978,3]
[311429570,1705095041958,-286.94008968,0.0002978,3]
[311429571,1705095041967,-10241.64739607,0.0002979,7]
[311429572,1705095041980,-18533.09262578,0.0002979,7]
[311429573,1705095041991,-5245.44590784,0.0002979,7]
[311429943,1705096238015,-1184.19984249,0.00021371,2]
[311429944,1705096238024,-561.96960616,0.000239,5]
[311429945,1705096238033,-400.32429971,0.000257,2]
[311429946,1705096238042,-150.0,0.00026605,2]
[311429947,1705096238051,-460.75992736,0.00027207,2]
[311429948,1705096238060,-152.64236017,0.00027208,2]
[311429949,1705096238069,-500.0,0.00027338,2]
[311429950,1705096238078,-500.0,0.00027339,2]
[311429951,1705096238087,-2333.36105957,0.00027341,2]
[311429954,1705096238120,-35.0967125,0.00027341,2]
[311429956,1705096238129,-2172.41252318,0.00027341,2]
[311429958,1705096238139,-150.0,0.0002769,2]
[311429960,1705096238148,-152.64236017,0.00027834,2]
[311429962,1705096238157,-212.649449,0.00027881,2]
[311429964,1705096238167,-156.01967901,0.00028012,2]
[311429966,1705096238176,-500.0,0.00028598,2]
[311429968,1705096238185,-300.0,0.000286,14]
[311429970,1705096238195,-155.0,0.0002879,2]
[311429972,1705096238204,-500.0,0.00028872,2]
[311429974,1705096238214,-1000.0,0.00028939,7]
[311429976,1705096238223,-1000.0,0.00028939,7]
[311429978,1705096238233,-521.55362465,0.00028939,2]
[311429980,1705096238242,-1000.0,0.00028939,7]
[311429982,1705096238251,-1000.0,0.00028939,7]
[311429984,1705096238260,-956.25066976,0.00028939,2]
[311430183,1705096241041,-1007.9363408,0.00028939,2]
[311430184,1705096241051,-596.5009819,0.00028939,2]
[311430185,1705096241063,-230.06301017,0.00028939,2]
[311430186,1705096241073,-525.0,0.00028939,2]
[311430187,1705096241083,-834.6449325,0.00028939,2]
[311430188,1705096241092,-202.36871688,0.00028939,2]
[311430189,1705096241102,-2408.12387098,0.00029,2]
[311430190,1705096241112,-150.0,0.00029129,2]
[311430191,1705096241121,-351.67,0.00029146,2]
[311430192,1705096241130,-152.64236017,0.00029222,2]
[311430193,1705096241140,-152.64236017,0.00029242,2]
[311430194,1705096241150,-2950.64782794,0.00029489,2]
[311430195,1705096241159,-150.0,0.00029605,2]
[311430196,1705096241168,-1309.68852729,0.00029624,3]
[311430197,1705096241181,-608.23147271,0.00029624,3]
[311430198,1705096241190,-1598.27,0.00029624,3]
[311430199,1705096241199,-1331.89,0.00029624,3]
[311430200,1705096241208,-813.94,0.00029633,2]
[311430201,1705096241217,-5000.0,0.00029634,5]
[311430202,1705096241227,-3124.10475486,0.00029634,5]
[311430203,1705096241239,-1875.89524514,0.00029634,5]
[311430204,1705096241248,-1067.2872761,0.00029634,5]
[311430205,1705096241260,-48932.7127239,0.00029634,5]
[311430206,1705096241269,-1087.54548067,0.00029634,5]
[311430207,1705096241280,-3912.45451933,0.00029634,5]
[311430208,1705096241289,-152.64236017,0.00029758,2]
[311430209,1705096241298,-676.96253794,0.00029788,2]
[311430210,1705096241308,-246.05359663,0.00029788,2]
[311430211,1705096241317,-1929.17451543,0.00029788,2]
[311430212,1705096241326,-515.12,0.00029788,2]
[311430213,1705096241336,-500.0,0.00029788,2]
[311430214,1705096241345,-2677.23,0.00029788,2]
[311430215,1705096241354,-500.0,0.00029788,2]
[311430216,1705096241364,-500.0,0.00029788,2]
[311430217,1705096241373,-500.0,0.00029788,2]
[311430218,1705096241382,-500.0,0.00029788,2]
[311430219,1705096241391,-500.0,0.00029788,2]
[311430220,1705096241400,-500.0,0.00029788,2]
[311430221,1705096241409,-500.0,0.00029788,2]
[311430222,1705096241418,-1138.43042289,0.00029789,2]
[311430223,1705096241427,-9030.16,0.00029789,2]
[311430224,1705096241437,-9030.16,0.00029789,2]